bitfinex-derivatives/quotes_ETHF0:USTF0_20250903
["timestamp","ask_amount","ask_price","bid_price","bid_amount"]
[1756860505228,0.4067,4317.6,4317.5,0.6966]
[1756860505418,3.2078,4318.4,4317.5,0.6966]
[1756860505419,0.5285,4318.0,4317.5,0.6966]
[1756860505623,0.2905,4317.9,4317.6,0.3065]
[1756860505829,0.2103,4317.7,4317.6,0.3901]
[1756860506527,0.2103,4317.7,4317.6,0.6966]
[1756860506832,0.4067,4317.7,4317.6,0.6966]
[1756860507128,0.2103,4317.7,4317.6,0.6966]
[1756860508835,0.6972,4317.7,4317.6,0.6966]
[1756860509341,0.4067,4317.7,4317.6,0.6966]
[1756860510524,0.2103,4317.7,4317.6,0.6966]
[1756860511825,3.6551,4318.4,4318.3,0.6966]
[1756860512131,3.4181,4318.4,4318.3,1.82195188]
[1756860512835,3.2078,4318.4,4318.3,1.82195188]
[1756860513235,3.4181,4318.4,4318.3,1.82195188]
[1756860513436,3.2078,4318.4,4318.3,0.6966]
[1756860513629,0.2905,4318.7,4318.3,0.6966]
[1756860513830,0.2103,4318.5,4318.4,0.6966]
[1756860515531,0.6972,4318.5,4318.4,0.6966]
[1756860515729,0.4067,4318.5,4318.4,0.6966]
[1756860516038,0.237,4318.9,4318.4,0.3901]
[1756860516224,0.6437,4318.9,4318.8,0.3901]
[1756860516431,1.52705684,4318.9,4318.8,0.6966]
[1756860518336,1.52705684,4318.9,4318.8,0.502]
[1756860518640,1.52705684,4318.9,4318.3,0.3065]
[1756860518641,0.4067,4318.4,4318.3,0.3065]
[1756860518833,0.6972,4318.3,4318.2,0.1955]
[1756860519035,0.6972,4318.3,4318.2,0.6966]
[1756860521137,0.4067,4318.3,4318.2,0.6966]
[1756860521640,0.707,4318.3,4318.2,0.6966]
[1756860521838,0.707,4318.3,4318.2,0.502]
[1756860522935,0.3003,4318.2,4317.6,3.5031]
[1756860523144,1.29514631,4318.1,4318.0,0.7017]
[1756860523835,1.53214631,4318.1,4318.0,0.2953]
[1756860524041,1.53214631,4318.1,4318.0,0.5001]
[1756860524440,1.53214631,4318.1,4318.0,0.7017]
[1756860524743,1.53214631,4318.1,4318.0,0.2048]
[1756860525140,1.53214631,4318.1,4318.0,0.5001]
[1756860525337,0.59384631,4318.1,4318.0,0.7017]
[1756860525537,3.4448,4318.5,4318.1,0.2953]
[1756860525740,0.59400656,4318.4,4318.1,0.4064]
[1756860525939,0.59400656,4318.3,4318.2,0.7017]
[1756860526633,0.80140656,4318.3,4318.2,0.7017]
[1756860527735,0.59400656,4318.3,4318.2,0.7017]
[1756860527936,0.237,4318.9,4318.2,0.63797999]
[1756860528142,0.59416964,4318.8,4318.7,0.4064]
[1756860528344,1.29546964,4318.8,4318.7,0.7017]
[1756860528846,0.99516964,4318.8,4318.7,0.7017]
[1756860530348,0.3003,4318.7,4318.1,0.2953]
[1756860530550,0.89446964,4318.6,4318.2,0.2953]
[1756860530849,0.7013,4318.6,4318.5,0.7017]
[1756860531039,1.29555126,4318.6,4318.5,0.7017]
[1756860531239,1.29555126,4318.6,4318.0,3.2078]
[1756860531435,0.7013,4318.5,4318.4,0.2048]
[1756860531641,0.401,4318.5,4318.4,0.7017]
[1756860531847,0.401,4318.5,4318.0,3.2078]
[1756860531848,0.237,4318.7,4318.5,0.2953]
[1756860532042,0.237,4318.7,4318.6,0.7017]
[1756860532440,1.03867095,4318.7,4318.6,0.7017]
[1756860533144,1.23227095,4318.7,4318.1,0.2953]
[1756860533344,0.2074,4318.2,4318.1,0.7017]
[1756860534550,0.401,4318.2,4318.1,0.7017]
[1756860534847,0.7013,4318.2,4318.1,0.7017]
[1756860535653,1.82653953,4318.2,4317.8,0.2953]
[1756860535950,0.7013,4317.9,4317.8,0.5001]
[1756860536449,0.7013,4317.9,4317.8,0.7017]
[1756860538050,0.401,4317.9,4317.8,0.7017]
[1756860538846,0.7013,4317.9,4317.8,0.2953]
[1756860539150,0.5373,4318.1,4317.9,0.2953]
[1756860539361,0.7013,4318.0,4317.9,0.5001]
[1756860539648,0.7013,4318.0,4317.9,0.7017]
[1756860540946,0.7013,4318.0,4317.9,0.5001]
[1756860541252,1.29557764,4318.0,4317.9,0.2048]
[1756860541745,0.7013,4317.5,4317.4,3.9095]
[1756860542553,1.82653953,4317.5,4317.4,0.5001]
[1756860542851,1.82653953,4317.5,4316.8,3.4448]
[1756860542852,0.3003,4317.4,4316.9,0.2953]
[1756860543149,0.401,4317.0,4316.9,0.7017]
[1756860543353,0.2074,4317.0,4316.9,0.7017]
[1756860543854,0.7013,4317.0,4316.9,0.7017]
[1756860544045,0.401,4317.0,4316.9,0.7017]
[1756860545551,0.7013,4317.0,4316.9,0.7017]
[1756860547347,0.7013,4317.0,4316.9,0.2048]
[1756860547553,0.3003,4316.9,4316.4,0.2953]
[1756860547755,0.2074,4316.5,4316.4,0.7017]
[1756860548453,0.7013,4316.5,4316.4,0.7017]
[1756860550748,0.401,4316.5,4316.4,0.7017]
[1756860551356,0.7107,4316.5,4316.4,0.7017]
[1756860551759,0.401,4316.5,4315.8,0.3045]
[1756860552058,0.1976,4315.9,4315.8,0.7181]
[1756860553356,0.7053,4315.9,4315.8,0.5058]
[1756860554251,0.7053,4315.9,4315.8,0.7181]
[1756860555046,0.3956,4315.9,4315.8,0.7181]
[1756860555856,3.4054,4316.5,4316.4,0.2013]
[1756860556060,3.6034,4316.5,4316.4,0.7181]
[1756860557163,3.9131,4316.5,4316.4,0.5058]
[1756860557456,3.9131,4316.5,4315.8,5.335]
[1756860557660,0.1976,4316.0,4315.9,0.7181]
[1756860558867,0.236,4316.3,4316.0,0.3045]
[1756860559058,0.9413,4316.3,4316.2,0.7181]
[1756860560761,3.2078,4316.5,4316.3,0.3045]
[1756860561061,0.236,4316.4,4316.3,0.7181]
[1756860561363,0.9413,4316.4,4316.3,0.7181]
[1756860561756,0.6316,4316.4,4316.3,0.7181]
[1756860562567,0.9413,4316.4,4316.3,0.7181]
[1756860562761,3.2078,4316.5,4316.3,0.7181]
[1756860562956,0.236,4316.4,4316.3,0.7181]
[1756860563866,0.6316,4316.4,4316.3,0.7181]
[1756860564160,0.9413,4316.4,4316.3,0.7181]
[1756860564558,0.9413,4316.4,4316.3,0.2013]
[1756860565160,0.9413,4316.4,4316.3,0.5058]
[1756860565666,0.9413,4316.4,4316.3,0.7181]
[1756860568662,0.3097,4316.9,4316.4,0.3045]
[1756860568868,0.7053,4316.9,4316.8,0.5058]
[1756860569067,1.53462676,4316.9,4316.8,0.5058]
[1756860569765,0.79092676,4316.9,4316.8,0.7181]
[1756860569967,1.02692676,4316.9,4316.8,0.7181]
[1756860570561,1.22492676,4316.9,4316.8,0.7181]
[1756860570762,1.53462676,4316.9,4316.8,0.7181]
[1756860571467,2.54994796,4316.9,4316.3,0.3045]
[1756860571665,0.3956,4316.3,4316.2,6.0531]
[1756860571968,0.1976,4316.3,4316.2,0.7181]
[1756860572168,1.5610212,4316.9,4316.2,0.7181]
[1756860572169,1.6347212,4316.9,4316.2,0.4136]
[1756860572474,1.53585702,4316.8,4316.7,0.7181]
[1756860574775,1.53585702,4316.8,4316.1,0.7181]
[1756860574776,0.7053,4316.2,4316.1,0.7181]
[1756860575067,0.3956,4316.2,4316.1,0.7181]
[1756860575267,0.236,4316.4,4316.1,0.7181]
[1756860575464,0.236,4316.5,4316.2,0.3045]
[1756860575669,2.0303212,4316.9,4316.8,0.2013]
[1756860575967,2.86109988,4316.9,4316.8,0.5058]
[1756860576364,1.53607868,4316.9,4316.8,0.5058]
[1756860576569,0.99037868,4316.9,4316.8,0.7181]
[1756860576765,1.22637868,4316.9,4316.8,0.7181]
[1756860577470,1.53607868,4316.9,4316.8,0.7181]
[1756860578274,1.53607868,4316.9,4316.8,0.5058]
[1756860578761,1.22637868,4316.9,4316.8,0.7181]
[1756860579168,1.30007868,4316.9,4316.8,0.7181]
[1756860579367,1.53607868,4316.9,4316.8,0.7181]
[1756860582471,1.30007868,4316.9,4316.8,0.7181]
[1756860582675,1.53607868,4316.9,4316.8,0.7181]
[1756860583778,1.30007868,4316.9,4316.8,0.7181]
[1756860583972,0.99037868,4316.9,4316.8,0.7181]
[1756860584870,1.30067868,4316.9,4316.8,0.7181]
[1756860585069,1.30067868,4316.9,4316.8,0.5058]
[1756860585274,0.3103,4316.8,4316.1,0.3167]
[1756860585576,1.00437868,4316.7,4316.6,0.2134]
[1756860585879,1.00437868,4316.7,4316.6,0.5301]
[1756860586081,1.31467868,4316.7,4316.6,0.5301]
[1756860586372,2.32939988,4316.7,4315.9,0.3167]
[1756860586678,0.5177,4316.0,4315.9,0.96098]
[1756860586978,0.2074,4316.0,4315.9,0.96098]
[1756860587182,0.2074,4316.0,4315.9,0.7293]
[1756860589479,0.3103,4316.3,4315.9,0.4126]
[1756860589680,0.80294081,4316.2,4316.1,0.4126]
[1756860589876,0.80294081,4316.2,4316.1,0.7293]
[1756860590874,0.80294081,4316.2,4316.1,0.5301]
[1756860590875,1.31544081,4316.2,4316.1,0.5301]
[1756860591177,1.31544081,4316.2,4315.6,0.3167]
[1756860591378,0.4096,4315.7,4315.6,0.4126]
[1756860591568,0.7199,4315.7,4315.6,0.7293]
[1756860591774,0.2074,4315.7,4315.6,0.7293]
[1756860591976,0.5463,4316.2,4315.7,0.3167]
[1756860592177,1.31544173,4316.1,4316.0,0.4126]
[1756860592378,1.31544173,4316.1,4316.0,0.7293]
[1756860595172,1.00514173,4316.1,4316.0,0.7293]
[1756860595578,1.31544173,4316.1,4316.0,0.7293]
[1756860596477,1.31544173,4316.1,4315.3,4.7688212]
[1756860596670,0.2074,4315.5,4315.4,0.7293]
[1756860597486,0.7199,4315.5,4315.4,0.7293]
[1756860597683,0.3103,4315.8,4315.5,0.3167]
[1756860597885,0.2074,4315.6,4315.5,0.7293]
[1756860598278,0.7199,4315.6,4315.5,0.7293]
[1756860598884,0.2074,4315.6,4315.5,0.7293]
[1756860599180,0.7199,4316.4,4316.3,0.2134]
[1756860599486,1.3149669,4316.4,4316.3,0.5301]
[1756860599681,1.5509669,4316.4,4316.3,0.5301]
[1756860600982,0.5950669,4316.4,4316.3,0.7293]
[1756860601180,0.8024669,4316.4,4316.3,0.7293]
[1756860601586,1.3149669,4316.4,4316.3,0.5301]
[1756860602386,1.3149669,4316.4,4316.3,0.7293]
[1756860603888,1.0046669,4316.4,4316.3,0.7293]
[1756860604792,0.236,4317.0,4316.4,0.3167]
[1756860605087,0.59520478,4316.9,4316.8,0.7293]
[1756860605276,1.31510478,4316.9,4316.8,0.7293]
[1756860607485,2.44110246,4316.9,4316.8,0.7293]
[1756860607991,2.44110246,4316.9,4316.8,0.2134]
[1756860608188,2.44110246,4316.9,4316.3,3.2078]
[1756860608389,0.2074,4316.5,4316.4,0.4126]
[1756860608590,0.2074,4316.5,4316.4,0.7293]
[1756860608789,0.7199,4316.5,4316.4,0.2134]
[1756860609293,0.7199,4316.5,4316.4,0.5301]
[1756860609593,0.7199,4316.5,4316.4,0.7293]
[1756860611689,0.236,4317.0,4316.9,0.4281]
[1756860611690,0.205,4317.0,4316.9,0.4281]
[1756860611886,1.01454574,4317.0,4316.9,0.7476]
[1756860612080,1.32724574,4317.0,4316.9,0.7476]
[1756860613190,3.2078,4318.0,4316.9,1.87359768]
[1756860613497,0.3127,4317.0,4316.5,3.2078]
[1756860613795,0.7319,4316.7,4316.6,0.7476]
[1756860614893,0.205,4316.7,4316.6,0.7476]
[1756860615088,0.236,4317.0,4316.7,0.3195]
[1756860615288,0.236,4317.0,4316.9,0.7476]
[1756860615289,0.9679,4317.0,4316.9,0.7476]
[1756860615995,0.6552,4317.0,4316.9,0.7476]
[1756860616595,0.9679,4317.0,4316.9,0.7476]
[1756860620601,0.7319,4317.0,4316.9,0.7476]
[1756860624698,0.7319,4316.9,4316.8,0.7476]
[1756860626197,0.7319,4316.9,4316.8,0.3195]
[1756860626398,0.7319,4316.9,4316.8,0.5331]
[1756860626900,0.7319,4316.9,4316.8,0.7476]
[1756860627100,0.205,4316.9,4316.8,0.7476]
[1756860627299,0.7319,4316.9,4316.8,0.7476]
[1756860629598,0.7319,4316.9,4316.8,0.5331]
[1756860629987,0.7319,4316.9,4316.0,1.25069768]
[1756860630193,1.85789768,4316.7,4316.6,0.5331]
[1756860632200,0.7319,4316.7,4316.6,0.5331]
[1756860632700,0.236,4317.1,4317.0,0.4281]
[1756860632894,0.5487,4317.4,4317.1,0.3195]
[1756860633092,1.24312373,4317.9,4317.4,0.3195]
[1756860633093,0.236,4317.9,4317.4,0.3195]
[1756860633298,0.9679,4317.9,4317.8,0.7476]
[1756860633605,1.562865,4317.9,4317.8,0.5331]
[1756860634295,1.56286252,4317.9,4317.8,0.5331]
[1756860634502,1.32686252,4317.9,4317.8,0.5331]
[1756860634700,1.56286252,4317.9,4317.8,0.7476]
[1756860635098,1.56286252,4317.9,4317.0,3.2078]
[1756860635293,1.33099768,4317.4,4317.3,0.2136]
[1756860635501,2.1401602,4317.4,4317.3,0.5331]
[1756860635700,2.1401602,4317.4,4317.1,0.3195]
[1756860635701,0.3127,4317.3,4317.1,0.3195]
[1756860636003,0.3127,4317.3,4316.5,3.3325]
[1756860636004,0.4192,4316.7,4316.6,0.7476]
[1756860636201,0.7319,4316.7,4316.6,0.7476]
[1756860636407,0.7319,4316.7,4316.6,0.5331]
[1756860638408,0.7319,4316.7,4316.6,0.7476]
[1756860641611,0.4192,4316.7,4316.6,0.7476]
[1756860644504,0.7159,4316.7,4316.6,0.7476]
[1756860649615,0.4033,4316.3,4316.2,0.4116]
[1756860649814,0.7,4316.3,4316.2,0.7175]
[1756860650413,0.7,4316.3,4316.2,0.5066]
[1756860651017,0.2967,4316.2,4315.4,3.4438]
[1756860651209,1.82599768,4316.0,4315.9,0.2007]
[1756860651508,1.82599768,4316.0,4315.9,0.5066]
[1756860651713,1.82599768,4316.0,4315.9,0.7175]
[1756860652311,0.2967,4315.9,4315.4,3.2078]
[1756860652617,1.82599768,4315.6,4315.5,0.5066]
[1756860654016,1.52929768,4315.6,4315.1,0.3059]
[1756860654212,0.2052,4315.0,4314.9,0.94924]
[1756860654416,0.4033,4315.5,4315.4,0.2007]
[1756860654714,0.7,4315.5,4315.4,0.7175]
[1756860657908,1.52929768,4315.5,4315.4,0.2007]
[1756860658107,1.52929768,4315.5,4315.2,0.3059]
[1756860658318,0.2052,4315.0,4314.9,0.7175]
[1756860658815,0.7,4315.0,4314.9,0.7175]
[1756860659015,0.7,4315.0,4314.9,0.5066]
[1756860660215,0.4033,4315.0,4314.4,0.3059]
[1756860660514,0.4033,4314.8,4314.7,0.7175]
[1756860660722,1.62789768,4315.2,4315.1,0.4116]
[1756860660918,1.82599768,4315.2,4315.1,0.7175]
[1756860661219,1.82599768,4315.2,4315.1,0.5066]
[1756860661419,2.06199768,4315.2,4315.1,0.5066]
[1756860663317,2.06199768,4315.2,4314.5,1.24719768]
[1756860663523,2.06199768,4315.2,4314.3,3.2078]
[1756860663524,0.2967,4314.6,4314.3,3.2078]
[1756860663721,1.12599768,4314.9,4314.3,3.2078]
[1756860663722,0.4033,4314.5,4314.4,0.2007]
[1756860663919,0.4033,4314.5,4314.4,0.7175]
[1756860664222,1.12599768,4315.2,4314.5,0.3059]
[1756860664425,3.2078,4315.5,4315.3,0.5066]
[1756860664426,0.7,4315.4,4315.3,0.5066]
[1756860664722,1.16775,4315.4,4315.3,0.5066]
[1756860665123,0.4033,4314.9,4314.8,0.4116]
[1756860665323,0.7,4314.9,4314.8,0.7175]
[1756860665715,0.4033,4314.9,4314.8,0.7175]
[1756860666222,0.7,4314.9,4314.8,0.7175]
[1756860667522,0.7,4314.9,4314.4,0.3059]
[1756860667823,1.82599768,4314.5,4313.8,3.2078]
[1756860668020,0.2052,4314.0,4313.9,0.7175]
[1756860668418,0.7,4314.0,4313.9,0.7175]
[1756860672020,0.4269,4313.7,4313.6,1.99367125]
[1756860672324,2.06658858,4313.3,4312.9,0.2952]
[1756860672527,2.06658858,4313.0,4312.9,0.5105]
[1756860672729,2.06658858,4313.0,4312.6,3.2078]
[1756860672921,2.06658858,4313.0,4312.6,3.503]
[1756860673121,0.2126,4313.1,4312.6,3.2078]
[1756860673327,1.32698858,4313.0,4312.8,0.39151758]
[1756860673525,0.4269,4312.9,4312.8,0.39151758]
[1756860673729,0.7396,4312.9,4312.8,0.39151758]
[1756860674318,0.7396,4312.9,4312.8,0.68671758]
[1756860674519,0.9756,4312.9,4312.8,0.68671758]
[1756860674928,0.9756,4312.9,4312.8,0.39151758]
[1756860675431,0.9756,4312.9,4312.8,0.17621758]
[1756860676125,5.20747001,4312.9,4312.8,0.17621758]
[1756860676325,5.20747001,4312.9,4312.1,0.30359]
[1756860676526,0.7396,4312.2,4312.1,0.00839]
[1756860676832,0.9756,4312.2,4312.1,0.51889]
[1756860677126,0.9756,4312.2,4312.1,0.30359]
[1756860677529,0.9756,4312.2,4312.1,0.00839]
[1756860677933,0.9756,4312.2,4312.1,0.72929]
[1756860679629,0.9756,4312.2,4312.1,0.51889]
[1756860679833,0.9756,4312.2,4312.1,0.22369]
[1756860680227,0.9756,4312.2,4312.1,0.51889]
[1756860681428,0.9756,4312.2,4312.1,0.00839]
[1756860682132,0.7396,4312.2,4312.1,0.72929]
[1756860682336,0.9756,4312.2,4312.1,0.51889]
[1756860682836,0.9756,4312.2,4312.1,0.00839]
[1756860683828,0.7396,4312.2,4312.1,0.00839]
[1756860684236,2.30258858,4312.2,4312.1,0.51889]
[1756860684736,2.30258858,4312.2,4312.1,0.00839]
[1756860685828,0.3127,4312.1,4311.1,0.2952]
[1756860686330,1.32698858,4311.9,4311.1,0.2952]
[1756860686531,1.32698858,4311.9,4311.0,3.3256]
[1756860686532,0.6629,4311.8,4311.7,0.7209]
[1756860687038,0.9756,4311.8,4311.7,0.7209]
[1756860687433,0.7396,4311.8,4311.7,0.7209]
[1756860687639,0.6629,4311.8,4311.7,0.7209]
[1756860687938,0.9756,4311.8,4311.7,0.7209]
[1756860688131,2.30258858,4311.8,4311.7,0.7209]
[1756860688331,2.30258858,4311.8,4311.7,0.5105]
[1756860688531,0.3127,4311.7,4311.1,0.2952]
[1756860688736,0.7396,4311.7,4311.6,0.7209]
[1756860688937,0.6629,4311.7,4311.6,0.7209]
[1756860689444,0.2143,4311.7,4311.6,0.7209]
[1756860690541,0.2143,4312.7,4312.6,0.7209]
[1756860690731,3.2078,4312.9,4312.7,0.2952]
[1756860690937,0.2143,4312.8,4312.7,0.7209]
[1756860691335,0.7396,4312.8,4312.7,0.5105]
[1756860691535,0.4269,4312.8,4312.0,3.2078]
[1756860691736,0.4269,4312.6,4312.5,0.7209]
[1756860691937,0.6629,4312.6,4312.5,0.7209]
[1756860692138,0.236,4312.7,4312.5,0.4257]
[1756860692437,0.236,4312.7,4312.6,0.7209]
[1756860692639,0.9756,4312.7,4312.6,0.7209]
[1756860693534,2.30258858,4312.7,4312.6,0.7209]
[1756860693938,0.6629,4312.7,4312.6,0.7209]
[1756860694740,0.3127,4313.1,4312.7,0.2952]
[1756860695041,0.59178566,4313.0,4312.9,0.7209]
[1756860695341,0.3127,4312.9,4312.1,0.2952]
[1756860695545,0.7396,4312.7,4312.6,0.5105]
[1756860695746,0.9756,4312.7,4312.6,0.5105]
[1756860696043,0.9756,4312.7,4312.6,0.7209]
[1756860696243,1.56810919,4312.7,4312.6,0.7209]
[1756860697632,1.25540919,4312.7,4312.6,0.7209]
[1756860697833,1.01940919,4312.7,4312.6,0.7209]
[1756860698044,0.82850919,4312.7,4312.6,0.7209]
[1756860698241,1.56810919,4312.7,4312.6,0.5105]
[1756860698542,2.89509777,4312.7,4312.6,0.5105]
[1756860699245,1.98988858,4312.7,4312.0,3.2078]
[1756860699436,0.4269,4312.2,4312.1,0.5105]
[1756860699641,1.56919184,4312.2,4312.1,0.5105]
[1756860699838,1.33319184,4312.2,4312.1,0.7209]
[1756860700040,1.25649184,4312.2,4312.1,0.7209]
[1756860700240,1.33319184,4312.2,4312.1,0.7209]
[1756860700540,1.56919184,4312.2,4312.1,0.7209]
[1756860701641,1.33319184,4312.2,4312.1,0.7209]
[1756860701842,1.56919184,4312.2,4312.1,0.7209]
[1756860702237,1.56919184,4312.2,4312.1,0.5105]
[1756860702445,1.56919184,4312.2,4311.3,3.2078]
[1756860702642,0.2125,4311.6,4311.5,0.7102]
[1756860703945,1.32698858,4312.3,4311.6,0.3163]
[1756860704144,0.4485,4312.0,4311.9,0.7102]
[1756860704455,0.9575,4312.0,4311.9,0.7102]
[1756860704635,1.55213647,4312.0,4311.9,0.7102]
[1756860705240,0.2125,4311.4,4311.3,3.6017]
[1756860705448,0.2125,4311.4,4311.3,3.918]
[1756860705744,1.62728858,4311.7,4311.3,3.6017]
[1756860705947,0.80712993,4311.6,4311.5,0.7102]
[1756860707041,1.25182993,4311.6,4310.4,5.335]
[1756860707245,0.7215,4310.4,4309.6,0.3163]
[1756860707437,0.7215,4310.4,4310.0,0.3163]
[1756860707641,0.2125,4310.4,4310.3,0.71922]
[1756860707841,0.1159,4310.6,4310.5,0.8309]
[1756860708040,0.1159,4310.6,4310.5,4.0387]
[1756860708440,0.1159,4310.6,4310.5,3.918]
[1756860708849,0.1159,4310.6,4310.5,4.0387]
[1756860709050,0.1159,4310.6,4310.5,3.918]
[1756860709753,0.1159,4310.6,4310.5,4.0387]
[1756860711152,0.8374,4310.6,4310.3,0.00902]
[1756860711352,1.74818858,4310.4,4310.3,0.00902]
[1756860711555,2.04848858,4310.4,4310.3,0.00902]
[1756860712146,2.04848858,4310.4,4310.3,0.52362]
[1756860712455,2.28448858,4310.4,4310.3,0.52362]
[1756860712953,2.28448858,4310.4,4310.3,0.20732]
[1756860713156,2.28448858,4310.4,4310.3,0.52362]
[1756860713652,2.28448858,4310.4,4309.9,0.3163]
[1756860713853,2.28448858,4310.4,4309.8,0.3163]
[1756860714047,1.32698858,4310.0,4309.9,0.3939]
[1756860714247,1.74818858,4310.0,4309.9,0.7102]
[1756860714855,2.04848858,4310.0,4309.9,0.7102]
[1756860715055,0.4212,4309.6,4309.5,3.2078]
[1756860715251,0.4212,4308.8,4308.7,0.3163]
[1756860715554,4.53478858,4309.6,4308.8,0.3163]
[1756860715555,0.3003,4309.2,4308.8,0.3163]
[1756860715750,0.4485,4309.2,4309.1,0.3939]
[1756860715954,0.4485,4309.2,4309.1,0.7102]
[1756860716343,0.2125,4309.2,4309.1,0.7102]
[1756860716744,0.7215,4309.2,4309.1,0.7102]
[1756860717151,0.7215,4309.2,4308.5,0.13034]
[1756860717152,0.3003,4308.6,4308.5,0.00964]
[1756860717352,0.3003,4309.1,4308.5,0.40354]
[1756860717558,0.6582,4308.9,4308.8,0.7102]
[1756860717854,0.9595,4308.9,4308.8,0.7102]
[1756860718647,0.3003,4308.8,4308.5,0.32594]
[1756860718850,0.7215,4308.6,4308.5,0.71984]
[1756860719046,0.238,4308.7,4308.5,0.40354]
[1756860719346,0.116,4308.8,4308.7,0.3163]
[1756860719547,0.5372,4308.8,4308.7,0.7102]
[1756860719750,2.16448858,4308.8,4308.7,0.1983]
[1756860719950,0.116,4308.8,4308.7,0.7102]
[1756860721756,0.3285,4308.8,4308.7,0.7102]
[1756860722759,0.8375,4308.8,4308.7,0.1983]
[1756860722949,1.86418858,4308.8,4308.7,0.7102]
[1756860723149,0.3285,4308.8,4308.7,0.7102]
[1756860723860,0.116,4308.8,4308.7,0.7102]
[1756860724264,0.3285,4308.8,4308.7,0.7102]
[1756860726967,0.116,4308.8,4308.7,0.7102]
[1756860727561,0.3285,4308.8,4308.7,0.7102]
[1756860727960,0.116,4308.8,4308.7,0.7102]
[1756860730055,0.238,4309.3,4308.7,10.27729]
[1756860730257,0.238,4309.3,4309.2,0.7102]
[1756860730463,0.4505,4309.8,4309.7,0.3939]
[1756860730657,3.7461,4310.0,4309.5,0.1207]
[1756860730965,3.9293,4310.0,4309.9,0.7102]
[1756860731159,4.1673,4310.0,4309.9,0.7102]
[1756860731360,3.629,4310.0,4309.9,0.7102]
[1756860731561,3.867,4310.0,4309.9,0.7102]
[1756860731763,3.629,4310.0,4309.9,0.7102]
[1756860732259,3.4203,4310.0,4309.9,0.7102]
[1756860732466,3.9311,4310.0,4309.9,0.7102]
[1756860732758,3.2078,4310.0,4309.9,0.7102]
[1756860732964,0.7071,4311.0,4310.9,0.737]
[1756860735665,3.4468,4311.2,4310.9,0.737]
[1756860735961,3.7072,4311.2,4311.1,0.4245]
[1756860736159,3.7072,4311.2,4311.1,0.737]
[1756860736560,3.9149,4311.2,4311.1,0.737]
[1756860737262,0.3031,4311.1,4310.4,0.3125]
[1756860737468,3.6118,4311.2,4310.4,0.737]
[1756860737469,0.4994,4310.5,4310.4,0.737]
[1756860737965,0.7071,4310.5,4310.4,0.4245]
[1756860738567,0.7071,4310.5,4310.4,0.737]
[1756860738755,3.2078,4311.2,4310.4,0.737]
[1756860738955,0.3031,4311.0,4310.4,0.737]
[1756860739165,0.4994,4310.5,4310.4,0.737]
[1756860739967,0.7071,4310.5,4310.4,0.213]
[1756860741763,0.7071,4310.5,4310.1,3.2078]
[1756860741972,0.3031,4310.4,4310.3,0.213]
[1756860742269,0.7071,4310.4,4310.3,0.213]
[1756860742766,0.7071,4310.4,4310.1,3.2078]
[1756860742966,0.404,4310.4,4310.1,3.2078]
[1756860743165,0.239,4310.6,4310.1,3.2078]
[1756860743166,0.404,4310.2,4310.1,3.4208]
[1756860743366,0.7071,4310.2,4310.1,3.4208]
[1756860743574,0.7071,4310.2,4310.1,0.4245]
[1756860743872,0.7071,4310.2,4310.1,0.737]
[1756860744168,0.4994,4310.2,4310.1,0.737]
[1756860745469,0.9461,4310.7,4310.6,0.4245]
[1756860745968,0.7071,4311.1,4311.0,0.4245]
[1756860746369,0.7071,4311.1,4311.0,1.5536611]
[1756860746570,0.7071,4311.1,4311.0,1.8661611]
[1756860746766,0.7071,4311.1,4311.0,0.737]
[1756860749168,0.4994,4311.1,4311.0,0.737]
[1756860751375,0.7071,4311.1,4311.0,0.737]
[1756860751968,3.2078,4311.8,4311.0,0.737]
[1756860752265,0.4994,4311.7,4311.6,0.737]
[1756860752581,0.238,4312.8,4312.1,0.4245]
[1756860752873,0.238,4312.8,4312.0,3.2078]
[1756860753073,0.7071,4312.7,4312.6,0.213]
[1756860753272,0.7071,4312.7,4312.6,0.737]
[1756860753669,0.7071,4312.7,4312.6,0.4245]
[1756860757276,0.7071,4312.7,4312.6,0.213]
[1756860761169,0.1963,4312.2,4312.1,0.737]
[1756860761376,0.3052,4312.7,4312.2,0.2964]
[1756860761683,0.1989,4312.2,4312.1,0.7056]
[1756860761978,0.5041,4312.2,4312.1,0.7056]
[1756860762173,0.7183,4312.2,4312.1,0.7056]
[1756860762378,0.7183,4312.2,4312.1,0.4092]
[1756860762574,0.7183,4312.2,4312.0,3.2078]
[1756860762879,0.7183,4312.1,4312.0,3.2078]
[1756860763177,0.4305,4312.0,4311.3,3.2078]
[1756860763381,0.7183,4311.4,4311.3,3.6551]
[1756860763581,0.7183,4311.4,4311.3,3.4171]
[1756860764076,0.7183,4311.4,4311.3,3.2078]
[1756860764673,0.7183,4310.8,4310.7,3.2078]
[1756860765375,0.7183,4310.8,4310.7,3.4171]
[1756860765683,0.7183,4310.8,4310.7,0.7056]
[1756860766482,0.70946,4310.8,4310.7,0.7056]
[1756860767877,0.3052,4310.7,4310.6,3.2078]
[1756860768184,0.7183,4310.7,4310.6,3.4171]
[1756860768375,0.7183,4310.7,4310.6,3.9134]
[1756860768877,0.7183,4310.7,4310.6,0.7056]
[1756860769382,0.7183,4310.7,4310.6,0.4092]
[1756860770278,0.7183,4310.7,4310.6,0.2093]
[1756860771484,0.4131,4310.7,4310.1,3.2078]
[1756860771680,0.4131,4310.3,4310.2,0.9436]
[1756860771873,0.7183,4310.3,4310.2,0.9436]
[1756860772287,0.5041,4310.3,4310.2,0.9436]
[1756860772582,0.1989,4310.3,4310.2,0.9436]
[1756860772784,0.3052,4310.9,4310.3,0.2964]